fUSD/lending_fUSD_20240620
["ID","MTS","AMOUNT","RATE_DAILY","PERIOD"]
[329967063,1718879436259,-500.0,0.00013698,2]
[329967064,1718879436268,-217.662114,0.00013698,2]
[329967065,1718879436277,-3257.68,0.00013698,2]
[329967066,1718879436287,-217.662114,0.00013698,2]
[329967067,1718879436296,-217.662114,0.00013698,2]
[329967068,1718879436305,-3021.08,0.00013698,2]
[329967069,1718879436315,-217.662114,0.00013698,2]
[329967070,1718879436324,-654.09,0.00013698,2]
[329967071,1718879436333,-217.662114,0.00013698,2]
[329967072,1718879436342,-217.662114,0.00013698,2]
[329967073,1718879436351,-500.0,0.00013698,2]
[329967074,1718879436361,-217.662114,0.00013698,2]
[329967075,1718879436370,-8351.26,0.00013698,2]
[329967076,1718879436379,-776.81,0.00013698,2]
[329967077,1718879436388,-217.662114,0.00013698,2]
[329967078,1718879436397,-1130.6,0.00013698,2]
[329967079,1718879436407,-773.8,0.00013698,2]
[329967080,1718879436416,-762.95,0.00013698,2]
[329967081,1718879436425,-472.26794574,0.00013698,2]
[329967082,1718879436435,-796.94,0.00013698,2]
[329967083,1718879436445,-500.0,0.00013698,2]
[329967084,1718879436454,-1139.95,0.00013698,2]
[329967085,1718879436463,-1968.73,0.00013698,2]
[329967086,1718879436472,-184.60600624,0.00013698,2]
[329967087,1718879436481,-1357.11,0.00013698,2]
[329967088,1718879436490,-25539.91,0.00013698,2]
[329967089,1718879436499,-151.0,0.00013698,2]
[329967090,1718879436509,-504.55,0.00013698,2]
[329967091,1718879436518,-151.0,0.00013698,2]
[329967092,1718879436527,-151.0,0.00013698,2]
[329967093,1718879436536,-390.18105524,0.00013698,2]
[329967094,1718879436545,-912.93,0.00013698,2]
[329967095,1718879436554,-500.0,0.00013698,2]
[329967096,1718879436563,-1191.33,0.00013698,2]
[329967097,1718879436572,-7623.27,0.00013698,2]
[329967098,1718879436581,-903.66,0.00013698,2]
[329967099,1718879436590,-1185.17,0.00013698,2]
[329967100,1718879436599,-535.81,0.00013698,2]
[329967101,1718879436608,-500.0,0.00013698,2]
[329967102,1718879436621,-500.0,0.00013698,2]
[329967103,1718879436630,-2117.38,0.00013698,2]
[329967104,1718879436639,-19520.87,0.00013698,2]
[329967105,1718879436648,-151.0,0.00013698,2]
[329967106,1718879436659,-1656.44,0.00013698,2]
[329967107,1718879436668,-500.0,0.00013698,2]
[329967108,1718879436677,-676.95,0.00013698,2]
[329967109,1718879436686,-1135.97,0.00013698,2]
[329967110,1718879436696,-690.95,0.00013698,2]
[329967111,1718879436705,-587.35,0.00013698,2]
[329967112,1718879436715,-6930.2,0.00013698,2]
[329967113,1718879436724,-1065.67,0.00013698,2]
[329967114,1718879436733,-1141.9,0.00013698,2]
[329967115,1718879436742,-151.0,0.00013698,2]
[329967116,1718879436751,-500.0,0.00013698,2]
[329967117,1718879436762,-151.0,0.00013698,2]
[329967118,1718879436771,-151.0,0.00013698,2]
[329967119,1718879436780,-151.0,0.00013698,2]
[329967120,1718879436789,-151.0,0.00013698,2]
[329967121,1718879436798,-151.0,0.00013698,2]
[329967122,1718879436807,-151.0,0.00013698,2]
[329967123,1718879436817,-151.0,0.00013698,2]
[329967124,1718879436827,-1484.45,0.00013698,2]
[329967125,1718879436836,-1656.1,0.00013698,2]
[329967126,1718879436846,-500.0,0.00013698,2]
[329967127,1718879436856,-500.0,0.00013698,2]
[329967128,1718879436867,-500.0,0.00013698,2]
[329967129,1718879436876,-1518.73,0.00013698,2]
[329967130,1718879436885,-910.44,0.00013698,2]
[329967131,1718879436894,-579.22,0.00013698,2]
[329967132,1718879436903,-1376.98,0.00013698,2]
[329967133,1718879436912,-500.0,0.00013698,2]
[329967134,1718879436921,-6651.1,0.00013698,2]
[329967135,1718879436930,-500.0,0.00013698,2]
[329967136,1718879436940,-3247.31,0.00013698,2]
[329967137,1718879436949,-644.2,0.00013698,2]
[329967138,1718879436959,-1451.0,0.00013698,2]
[329967139,1718879436968,-151.0,0.00013698,2]
[329967140,1718879436977,-151.0,0.00013698,2]
[329967141,1718879436986,-1353.45,0.00013698,2]
[329967142,1718879436995,-1521.35,0.00013698,2]
[329967143,1718879437005,-524.79,0.00013698,2]
[329967144,1718879437014,-3006.84,0.00013698,2]
[329967145,1718879437025,-500.0,0.00013698,2]
[329967146,1718879437034,-761.61,0.00013698,2]
[329967147,1718879437043,-2162.49,0.00013698,2]
[329967148,1718879437052,-3143.7,0.00013698,2]
[329967149,1718879437061,-500.0,0.00013698,2]
[329967150,1718879437070,-3702.85,0.00013698,2]
[329967151,1718879437080,-576.81,0.00013698,2]
[329967152,1718879437090,-500.0,0.00013698,2]
[329967153,1718879437099,-1303.58,0.00013698,2]
[329967154,1718879437109,-500.0,0.00013698,2]
[329967155,1718879437118,-1115.16,0.00013698,2]
[329967156,1718879437127,-1026.93,0.00013698,2]
[329967157,1718879437137,-11707.48,0.00013698,2]
[329967158,1718879437146,-1698.99,0.00013698,2]
[329967159,1718879437155,-827.75,0.00013698,2]
[329967160,1718879437165,-723.24,0.00013698,2]
[329967161,1718879437174,-726.08,0.00013698,2]
[329967162,1718879437183,-1570.36,0.00013698,2]
[329967163,1718879437192,-151.0,0.00013698,2]
[329967164,1718879437201,-5434.72,0.00013698,2]
[329967165,1718879437211,-277.244568,0.00013698,2]
[329967166,1718879437220,-2631.35,0.00013698,2]
[329967167,1718879437229,-914.83,0.00013698,2]
[329967168,1718879437238,-3285.07,0.00013698,2]
[329967169,1718879437248,-277.940166,0.00013698,2]
[329967170,1718879437258,-432.31865262,0.00013698,2]
[329967171,1718879437267,-277.940166,0.00013698,2]
[329967172,1718879437277,-277.940166,0.00013698,2]
[329967173,1718879437286,-151.0,0.00013698,2]
[329967174,1718879437295,-4107.05,0.00013698,2]
[329967175,1718879437305,-277.940166,0.00013698,2]
[329967176,1718879437315,-151.0,0.00013698,2]
[329967177,1718879437324,-641.46,0.00013698,2]
[329967178,1718879437333,-2889.95,0.00013698,2]
[329967179,1718879437342,-581.1,0.00013698,2]
[329967180,1718879437352,-500.0,0.00013698,2]
[329967181,1718879437361,-277.940166,0.00013698,2]
[329967182,1718879437370,-277.940166,0.00013698,2]
[329967183,1718879437379,-2815.69,0.00013698,2]
[329967184,1718879437388,-277.940166,0.00013698,2]
[329967185,1718879437397,-277.940166,0.00013698,2]
[329967186,1718879437406,-151.0,0.00013698,2]
[329967187,1718879437416,-151.0,0.00013698,2]
[329967188,1718879437425,-151.0,0.00013698,2]
[329967189,1718879437435,-500.0,0.00013698,2]
[329967190,1718879437444,-151.0,0.00013698,2]
[329967191,1718879437453,-151.0,0.00013698,2]
[329967192,1718879437462,-151.0,0.00013698,2]
[329967193,1718879437471,-151.0,0.00013698,2]
[329967194,1718879437481,-221.888834,0.00013698,2]
[329967195,1718879437490,-2207.0,0.00013698,2]
[329967196,1718879437499,-500.0,0.00013698,2]
[329967197,1718879437508,-851.02,0.00013698,2]
[329967198,1718879437517,-754.84,0.00013698,2]
[329967199,1718879437527,-2596.09,0.00013698,2]
[329967200,1718879437536,-4289.84,0.00013698,2]
[329967201,1718879437545,-4183.57,0.00013698,2]
[329967202,1718879437555,-1274.45,0.00013698,2]
[329967203,1718879437564,-500.0,0.00013698,2]
[329967204,1718879437574,-5400.07,0.00013698,2]
[329967205,1718879437583,-1378.47,0.00013698,2]
[329967206,1718879437592,-672.22,0.00013698,2]
[329967207,1718879437601,-500.0,0.00013698,2]
[329967208,1718879437612,-500.0,0.00013698,2]
[329967209,1718879437625,-1880.03,0.00013698,2]
[329967210,1718879437634,-767.81,0.00013698,2]
[329967211,1718879437643,-11618.75,0.00013698,2]
[329967212,1718879437653,-2278.08,0.00013698,2]
[329967213,1718879437663,-644.24,0.00013698,2]
[329967214,1718879437672,-500.0,0.00013698,2]
[329967215,1718879437681,-1876.52,0.00013698,2]
[329967216,1718879437692,-1791.09,0.00013698,2]
[329967217,1718879437701,-152.525172,0.00013698,2]
[329967218,1718879437710,-8724.24,0.00013698,2]
[329967219,1718879437719,-15711.28,0.00013698,2]
[329967220,1718879437728,-1697.14,0.00013698,2]
[329967221,1718879437737,-500.0,0.00013698,2]
[329967222,1718879437747,-500.0,0.00013698,2]
[329967223,1718879437756,-500.0,0.00013698,2]
[329967224,1718879437764,-686.37,0.00013698,2]
[329967225,1718879437773,-800.67,0.00013698,2]
[329967226,1718879437782,-2813.11,0.00013698,2]
[329967227,1718879437792,-1088.44,0.00013698,2]
[329967228,1718879437801,-759.31,0.00013698,2]
[329967229,1718879437810,-1986.7,0.00013698,2]
[329967230,1718879437819,-500.0,0.00013698,2]
[329967231,1718879437828,-151.0,0.00013698,2]
[329967232,1718879437837,-500.0,0.00013698,2]
[329967233,1718879437847,-500.0,0.00013698,2]
[329967234,1718879437857,-2369.84,0.00013698,2]
[329967235,1718879437866,-151.0,0.00013698,2]
[329967236,1718879437875,-1677.44,0.00013698,2]
[329967237,1718879437884,-1037.56,0.00013698,2]
[329967238,1718879437894,-1649.7,0.00013698,2]
[329967239,1718879437906,-1069.67,0.00013698,2]
[329967240,1718879437916,-7653.92,0.00013698,2]
[329967241,1718879437925,-500.0,0.00013698,2]
[329967242,1718879437935,-500.0,0.00013698,2]
[329967243,1718879437944,-578.42,0.00013698,2]
[329967245,1718879437954,-500.0,0.00013698,2]
[329967246,1718879437963,-500.0,0.00013698,2]
[329967247,1718879437973,-151.0,0.00013698,2]
[329967248,1718879437982,-2710.66,0.00013698,2]
[329967249,1718879437991,-151.0,0.00013698,2]
[329967250,1718879438000,-151.0,0.00013698,2]
[329967251,1718879438010,-129.48346079,0.00013698,2]
[329967252,1718879440118,-3000.0,0.0001356,2]
[329967253,1718879440128,-21.51653921,0.00013698,2]
[329967254,1718879440137,-18.29668,0.00013698,2]
[329967255,1718879440149,-132.70332,0.00013698,2]
[329967256,1718879440158,-1565.31854945,0.00013698,2]
[329967267,1718879440235,-294.78151469,0.00013698,2]
[329967269,1718879440246,-864.71917276,0.00013698,2]
[329967270,1718879440258,-348.40375138,0.00013698,2]
[329967271,1718879440269,-71.86701172,0.00013698,2]
[329967272,1718879440278,-3187.15,0.00013698,2]
[329967273,1718879440288,-216.11608026,0.00013698,2]
[329967274,1718879440299,-473.64391974,0.00013698,2]
[329967275,1718879440308,-654.07,0.00013698,2]
[329967276,1718879440317,-1774.52,0.00013698,2]
[329967277,1718879440326,-151.0,0.00013698,2]
[329967278,1718879440335,-3962.56,0.00013698,2]
[329967279,1718879440345,-2915.39,0.00013698,2]
[329967280,1718879440354,-500.0,0.00013698,2]
[329967281,1718879440364,-151.0,0.00013698,2]
[329967282,1718879440374,-500.0,0.00013698,2]
[329967283,1718879440383,-500.0,0.00013698,2]
[329967284,1718879440393,-3509.72,0.00013698,2]
[329967285,1718879440403,-2669.22,0.00013698,2]
[329967286,1718879440413,-4806.8,0.00013698,2]
[329967287,1718879440423,-151.0,0.00013698,2]
[329967288,1718879440433,-823.62,0.00013698,2]
[329967289,1718879440443,-881.65,0.00013698,2]
[329967290,1718879440452,-500.0,0.00013698,2]
[329967291,1718879440462,-244.49164233,0.00013698,2]
[329967292,1718879440472,-500.0,0.00013698,2]
[329967293,1718879440482,-500.0,0.00013698,2]
[329967294,1718879440491,-563.23204195,0.00013698,2]
[329967295,1718879440500,-2103.76,0.00013698,2]
[329967296,1718879440510,-500.0,0.00013698,2]
[329967297,1718879440520,-1778.52,0.00013698,2]
[329967298,1718879440529,-3000.66,0.00013698,2]
[329967299,1718879440539,-500.0,0.00013698,2]
[329967300,1718879440548,-151.0,0.00013698,2]
[329967301,1718879440558,-151.0,0.00013698,2]
[329967302,1718879440568,-151.0,0.00013698,2]
[329967303,1718879440578,-151.0,0.00013698,2]
[329967304,1718879440588,-2807.11,0.00013698,2]
[329967305,1718879440597,-500.0,0.00013698,2]
[329967306,1718879440607,-1247.17,0.00013698,2]
[329967307,1718879440619,-151.0,0.00013698,2]
[329967308,1718879440629,-151.0,0.00013698,2]
[329967309,1718879440639,-1620.99440904,0.00013698,2]
[329967310,1718879440650,-245.81559096,0.00013698,2]
[329967311,1718879440662,-500.0,0.00013698,2]
[329967312,1718879440671,-500.0,0.00013698,2]
[329967313,1718879440681,-742.83167341,0.00013698,2]
[329967332,1718879441119,-341.58666032,0.00013698,2]
[329967333,1718879441131,-353.43166627,0.00013698,2]
[329967334,1718879441142,-500.0,0.00013698,2]
[329967335,1718879441151,-683.97,0.00013698,2]
[329967336,1718879441161,-500.0,0.00013698,2]
[329967337,1718879441171,-1340.28419829,0.00013698,2]
[329967338,1718879441183,-2388.60864417,0.00013698,2]
[329967339,1718879441195,-308.94361421,0.00013698,2]
[329967340,1718879441249,-66.36354333,0.00013698,2]
[329967341,1718879441260,-876.5,0.00013698,2]
[329967342,1718879441269,-500.0,0.00013698,2]
[329967343,1718879441278,-176.34030667,0.00013698,2]
[329967344,1718879441290,-410.09252011,0.00013698,2]
[329967345,1718879441300,-317.0188502,0.00013698,2]
[329967346,1718879441312,-182.9811498,0.00013698,2]
[329967347,1718879441322,-278.77429899,0.00013698,2]
[329967348,1718879441347,-221.22570101,0.00013698,2]
[329967349,1718879441357,-500.0,0.00013698,2]
[329967350,1718879441367,-500.0,0.00013698,2]
[329967351,1718879441376,-432.07541905,0.00013698,2]
[329967418,1718879443494,-67.92458095,0.00013698,2]
[329967420,1718879443503,-654.09,0.00013698,2]
[329967422,1718879443514,-1509.49,0.00013698,2]
[329967423,1718879443524,-554.54,0.00013698,2]
[329967424,1718879443534,-500.0,0.00013698,2]
[329967425,1718879443544,-333.55,0.00013699,2]
[329967426,1718879443554,-200.0,0.00013699,2]
[329967427,1718879443564,-151.0,0.00013699,2]
[329967428,1718879443574,-151.0,0.00013699,2]
[329967429,1718879443584,-151.0,0.00013699,2]
[329967430,1718879443593,-2751.0,0.00013699,2]
[329967431,1718879443603,-519.37,0.00013699,2]
[329967432,1718879443612,-181.49,0.00013699,2]
[329967433,1718879443626,-3577.570494,0.00013732,2]
[329967434,1718879443636,-4524.973992,0.00013732,2]
[329967435,1718879443646,-177.163462,0.00013732,2]
[329967436,1718879443655,-696.58974522,0.00013735,2]
[329967437,1718879443666,-378.15062036,0.00013784,2]
[329967438,1718879443675,-2658.24767369,0.0001379,2]
[329967439,1718879443685,-2658.24767362,0.0001379,2]
[329967440,1718879443694,-2167.03995431,0.00013799,2]
[329967441,1718879443705,-2167.03995424,0.00013799,2]
[329967442,1718879443717,-2167.03995424,0.0001381,2]
[329967443,1718879443730,-2658.24767362,0.0001381,2]
[329967444,1718879443741,-500.0,0.00013849,2]
[329967445,1718879443752,-500.0,0.00013858,2]
[329967446,1718879443762,-154.823,0.00013859,2]
[329967447,1718879443771,-343.45,0.00013859,2]
[329967448,1718879443782,-361.506,0.00013859,2]
[329967449,1718879443792,-200.0,0.00013864,2]
[329967450,1718879443802,-1000.0,0.00013864,2]
[329967451,1718879443812,-500.0,0.00013864,2]
[329967452,1718879443877,-200.0,0.00013864,2]
[329967453,1718879444044,-500.0,0.00013866,2]
[329967454,1718879444054,-8277.54608028,0.00013872,2]
[329967455,1718879444064,-167.47894355,0.00013872,2]
[329967456,1718879444073,-168.81100199,0.00013872,2]
[329967457,1718879444083,-183.13740801,0.00013872,2]
[329967458,1718879444093,-174.83982574,0.00013872,2]
[329967459,1718879444104,-217.662114,0.00013872,2]
[329967460,1718879444114,-217.662114,0.00013872,2]
[329967461,1718879444124,-696.58974522,0.00013872,2]
[329967462,1718879444134,-500.0,0.00013875,2]
[329967463,1718879444143,-378.15062036,0.00013877,2]
[329967465,1718879444153,-500.0,0.00013884,2]
[329967466,1718879444163,-500.0,0.00013893,2]
[329967467,1718879444173,-277.940166,0.00013899,2]
[329967468,1718879444183,-277.940166,0.00013899,2]
[329967469,1718879444193,-151.0,0.00013899,2]
[329967470,1718879444203,-3577.570494,0.00013899,2]
[329967471,1718879444214,-4524.973992,0.00013899,2]
[329967472,1718879444224,-753.15564966,0.000139,2]
[329967473,1718879444234,-183.13740801,0.000139,2]
[329967474,1718879444244,-269.56606,0.000139,2]
[329967475,1718879444254,-189.27721258,0.000139,2]
[329967476,1718879444265,-182.99594781,0.000139,2]
[329967477,1718879444274,-2602.91243551,0.000139,2]
[329967478,1718879444283,-1000.0,0.000139,2]
[329967479,1718879444292,-5928.99125905,0.000139,2]
[329967480,1718879444303,-267.03704782,0.000139,2]
[329967481,1718879444313,-500.0,0.00013902,2]
[329967482,1718879444323,-433.21,0.00013904,2]
[329967483,1718879444333,-500.0,0.0001391,2]
[329967484,1718879444344,-500.0,0.00013919,2]
[329967485,1718879444355,-500.0,0.00013928,2]
[329967486,1718879444364,-500.0,0.00013937,2]
[329967487,1718879444374,-500.0,0.00013946,2]
[329967488,1718879444383,-500.0,0.00013954,2]
[329967489,1718879444393,-500.0,0.00013963,2]
[329967490,1718879444402,-151.0,0.00013965,2]
[329967491,1718879444411,-151.0,0.00013965,2]
[329967492,1718879444421,-2167.03995424,0.00013965,2]
[329967493,1718879444431,-2658.24767362,0.00013965,2]
[329967494,1718879444440,-8277.54608021,0.00013965,2]
[329967495,1718879444450,-3561.4360805,0.00013969,2]
[329967496,1718879444461,-27033.7297281,0.00013969,2]
[329967497,1718879444471,-1134.7819472,0.00013969,2]
[329967498,1718879444479,-2349.352081,0.00013969,2]
[329967499,1718879444489,-749.54697545,0.0001397,2]
[329967500,1718879444499,-155.0,0.0001397,2]
[329967501,1718879444508,-529.82691404,0.0001397,2]
[329967502,1718879444519,-669.96579635,0.0001397,2]
[329967503,1718879444528,-155.0,0.0001397,2]
[329967504,1718879444539,-209.36331102,0.0001397,2]
[329967505,1718879444548,-217.1710123,0.0001397,2]
[329967506,1718879444557,-155.81399374,0.0001397,2]
[329967507,1718879444567,-156.04927212,0.0001397,2]
[329967508,1718879444577,-203.71664317,0.0001397,2]
[329967509,1718879444587,-155.0,0.0001397,2]
[329967510,1718879444596,-1536.62591068,0.0001397,2]
[329967511,1718879444606,-155.5038907,0.0001397,2]
[329967512,1718879444621,-378.15062036,0.0001397,2]
[329967513,1718879444639,-570.0,0.00013972,2]
[329967514,1718879444650,-500.0,0.00013972,2]
[329967515,1718879444660,-500.0,0.00013972,2]
[329967516,1718879444671,-500.0,0.00013972,2]
[329967517,1718879444681,-500.0,0.00013972,2]
[329967518,1718879444690,-500.0,0.00013972,2]
[329967519,1718879444700,-500.0,0.00013972,2]
[329967520,1718879444710,-500.0,0.00013972,2]
[329967521,1718879444720,-500.0,0.00013972,2]
[329967522,1718879444730,-500.0,0.00013972,2]
[329967523,1718879444741,-500.0,0.00013972,2]
[329967524,1718879444751,-500.0,0.00013972,2]
[329967525,1718879444760,-500.0,0.00013972,2]
[329967526,1718879444770,-500.0,0.00013972,2]
[329967527,1718879444780,-500.0,0.00013972,2]
[329967528,1718879444789,-500.0,0.00013972,2]
[329967529,1718879444799,-500.0,0.00013972,2]
[329967530,1718879444810,-500.0,0.00013972,2]
[329967531,1718879444820,-500.0,0.00013972,2]
[329967532,1718879444831,-500.0,0.00013972,2]
[329967533,1718879444840,-500.0,0.00013972,2]
[329967534,1718879444850,-500.0,0.00013972,2]
[329967535,1718879444859,-500.0,0.00013972,2]
[329967536,1718879444869,-411.35301714,0.00013972,2]
[329967537,1718879444879,-500.0,0.00013972,2]
[329967538,1718879444888,-152.51106915,0.00013972,2]
[329967539,1718879444898,-500.0,0.00013972,2]
[329967540,1718879444908,-449.00755564,0.00013972,2]
[329967541,1718879444918,-500.0,0.00013972,2]
[329967542,1718879444927,-500.0,0.00013972,2]
[329967543,1718879444938,-500.0,0.00013972,2]
[329967544,1718879444948,-500.0,0.00013972,2]
[329967545,1718879444957,-500.0,0.00013972,2]
[329967546,1718879444967,-500.0,0.00013972,2]
[329967547,1718879444977,-500.0,0.00013972,2]
[329967548,1718879444986,-500.0,0.00013972,2]
[329967549,1718879444996,-500.0,0.00013972,2]
[329967550,1718879445005,-500.0,0.00013972,2]
[329967551,1718879445015,-500.0,0.00013972,2]
[329967552,1718879445025,-500.0,0.00013972,2]
[329967553,1718879445034,-500.0,0.00013972,2]
[329967554,1718879445044,-500.0,0.00013972,2]
[329967555,1718879445053,-500.0,0.00013972,2]
[329967556,1718879445063,-500.0,0.00013972,2]
[329967557,1718879445072,-500.0,0.00013972,2]
[329967558,1718879445082,-500.0,0.00013972,2]
[329967559,1718879445091,-500.0,0.00013972,2]
[329967560,1718879445100,-500.0,0.00013972,2]
[329967561,1718879445110,-500.0,0.00013972,2]
[329967562,1718879445119,-500.0,0.00013972,2]
[329967563,1718879445128,-500.0,0.00013972,2]
[329967564,1718879445138,-500.0,0.00013972,2]
[329967565,1718879445147,-1995.26,0.00013972,2]
[329967566,1718879445156,-500.0,0.00013972,2]
[329967567,1718879445166,-642.95,0.00013972,2]
[329967568,1718879445175,-500.0,0.00013972,2]
[329967569,1718879445185,-500.0,0.00013972,2]
[329967570,1718879445195,-500.0,0.00013972,2]
[329967571,1718879445205,-500.0,0.00013972,2]
[329967572,1718879445214,-566.58,0.00013972,2]
[329967573,1718879445223,-319.56381602,0.00013972,2]
[329967574,1718879445233,-500.0,0.00013972,2]
[329967575,1718879445242,-673.05,0.00013972,2]
[329967576,1718879445252,-500.0,0.00013972,2]
[329967577,1718879445262,-500.0,0.00013972,2]
[329967578,1718879445271,-500.0,0.00013972,2]
[329967579,1718879445280,-556.25,0.00013972,2]
[329967580,1718879445289,-500.0,0.00013972,2]
[329967581,1718879445298,-500.0,0.00013972,2]
[329967582,1718879445307,-500.0,0.00013972,2]
[329967583,1718879445316,-500.0,0.00013972,2]
[329967584,1718879445325,-500.0,0.00013972,2]
[329967585,1718879445335,-500.0,0.00013972,2]
[329967586,1718879445346,-500.0,0.00013972,2]
[329967587,1718879445355,-500.0,0.00013972,2]
[329967588,1718879445367,-500.0,0.00013972,2]
[329967589,1718879445376,-542.16,0.00013972,2]
[329967590,1718879445385,-500.0,0.00013972,2]
[329967591,1718879445395,-500.0,0.00013972,2]
[329967592,1718879445404,-579.18,0.00013972,2]
[329967593,1718879445413,-500.0,0.00013972,2]
[329967594,1718879445423,-500.0,0.00013972,2]
[329967595,1718879445432,-843.04,0.00013972,2]
[329967596,1718879445442,-500.0,0.00013972,2]
[329967597,1718879445450,-330.6789204,0.00013972,2]
[329967598,1718879445460,-500.0,0.00013972,2]
[329967599,1718879445470,-384.53149877,0.00013972,2]
[329967600,1718879445481,-283.78652055,0.00013972,2]
[329967601,1718879445489,-544.06,0.00013972,2]
[329967602,1718879445498,-500.0,0.00013972,2]
[329967603,1718879445507,-500.0,0.00013972,2]
[329967604,1718879445517,-500.0,0.00013972,2]
[329967605,1718879445528,-500.0,0.00013972,2]
[329967606,1718879445538,-500.0,0.00013972,2]
[329967607,1718879445547,-500.0,0.00013972,2]
[329967608,1718879445556,-500.0,0.00013972,2]
[329967609,1718879445565,-500.0,0.00013972,2]
[329967610,1718879445574,-500.0,0.00013972,2]
[329967611,1718879445584,-500.0,0.00013972,2]
[329967612,1718879445593,-669.63,0.00013972,2]
[329967613,1718879445602,-500.0,0.00013972,2]
[329967614,1718879445612,-500.0,0.00013972,2]
[329967615,1718879445627,-500.0,0.00013972,2]
[329967616,1718879445636,-500.0,0.00013972,2]
[329967617,1718879445646,-525.38,0.00013972,2]
[329967618,1718879445656,-500.0,0.00013972,2]
[329967619,1718879445665,-500.0,0.00013972,2]
[329967620,1718879445674,-500.0,0.00013972,2]
[329967621,1718879445683,-500.0,0.00013972,2]
[329967622,1718879445692,-500.0,0.00013972,2]
[329967623,1718879445702,-500.0,0.00013972,2]
[329967624,1718879445711,-500.0,0.00013972,2]
[329967625,1718879445720,-640.01,0.00013972,2]
[329967626,1718879445730,-500.0,0.00013972,2]
[329967627,1718879445739,-500.0,0.00013972,2]
[329967628,1718879445749,-500.0,0.00013972,2]
[329967629,1718879445758,-667.4,0.00013972,2]
[329967630,1718879445767,-508.9,0.00013972,2]
[329967631,1718879445777,-500.0,0.00013972,2]
[329967632,1718879445786,-500.0,0.00013972,2]
[329967633,1718879445795,-500.0,0.00013972,2]
[329967634,1718879445805,-500.0,0.00013972,2]
[329967635,1718879445814,-500.0,0.00013972,2]
[329967636,1718879445823,-500.0,0.00013972,2]
[329967637,1718879445832,-529.72,0.00013972,2]
[329967638,1718879445842,-500.0,0.00013972,2]
[329967639,1718879445852,-500.0,0.00013972,2]
[329967640,1718879445861,-500.0,0.00013972,2]
[329967641,1718879445870,-500.0,0.00013972,2]
[329967642,1718879445880,-500.0,0.00013972,2]
[329967643,1718879445889,-500.0,0.00013972,2]
[329967644,1718879445899,-500.0,0.00013972,2]
[329967645,1718879445909,-500.0,0.00013972,2]
[329967646,1718879445918,-500.0,0.00013972,2]
[329967647,1718879445928,-563.53,0.00013972,2]
[329967648,1718879445937,-625.47,0.00013972,2]
[329967649,1718879445948,-500.0,0.00013972,2]
[329967650,1718879445957,-500.0,0.00013972,2]
[329967651,1718879445967,-168.69,0.00013972,2]
[329967652,1718879445976,-500.0,0.00013972,2]
[329967653,1718879445985,-500.0,0.00013972,2]
[329967654,1718879445995,-500.0,0.00013972,2]
[329967655,1718879446005,-500.0,0.00013972,2]
[329967656,1718879446017,-500.0,0.00013972,2]
[329967657,1718879446027,-500.0,0.00013972,2]
[329967658,1718879446036,-504.36,0.00013972,2]
[329967659,1718879446047,-500.0,0.00013972,2]
[329967660,1718879446056,-500.0,0.00013972,2]
[329967661,1718879446066,-500.0,0.00013972,2]